bitfinex-derivatives/quotes_ETHF0:USTF0_20240910
["timestamp","ask_amount","ask_price","bid_price","bid_amount"]
[1725977625015,0.42976,2326.8,2325.9,3.72]
[1725977625321,1.07434,2326.9,2325.8,0.7552]
[1725977625523,0.42979,2326.6,2325.8,0.7552]
[1725977625817,0.3751,2326.8,2325.8,0.7552]
[1725977625818,11.04107043,2326.8,2325.8,0.7552]
[1725977626024,0.42977,2326.7,2326.3,0.42982]
[1725977626330,14.8491059,2326.7,2325.8,0.7552]
[1725977626511,10.5507059,2326.7,2325.8,0.7552]
[1725977626710,0.42981,2326.5,2325.8,0.7552]
[1725977626915,0.42981,2326.5,2326.1,0.42987]
[1725977626916,0.4298,2326.5,2326.1,0.42987]
[1725977627213,10.5507059,2326.4,2325.8,0.7552]
[1725977627412,0.3751,2326.8,2325.8,0.7552]
[1725977627618,0.3751,2326.8,2326.3,0.42983]
[1725977627619,11.04579626,2326.7,2326.3,0.42983]
[1725977627813,0.3751,2326.8,2325.8,0.7552]
[1725977628012,0.80486,2326.8,2326.3,0.42983]
[1725977628211,10.65072861,2326.6,2326.5,0.4298]
[1725977628422,10.65072861,2326.7,2326.6,0.42979]
[1725977628616,0.42971,2327.0,2326.6,0.42977]
[1725977628817,0.3742,2327.1,2325.9,7.906]
[1725977629024,0.42974,2326.9,2326.5,0.42979]
[1725977629221,0.42975,2326.8,2326.4,0.42981]
[1725977629522,10.54655381,2326.8,2325.9,7.906]
[1725977629724,0.3742,2327.1,2326.5,0.42979]
[1725977629725,0.42974,2326.9,2326.5,0.42979]
[1725977629923,0.3742,2327.1,2325.9,8.98075]
[1725977630124,10.54655381,2326.8,2326.6,0.42978]
[1725977630419,0.3742,2327.1,2326.5,0.42979]
[1725977630420,0.42973,2326.9,2326.5,0.42979]
[1725977630619,0.3742,2327.1,2325.9,7.906]
[1725977630620,0.42972,2327.0,2326.6,0.42977]
[1725977630816,10.8077524,2326.9,2326.1,1.0747]
[1725977631016,10.8077524,2326.9,2326.0,1.07473]
[1725977631211,0.3742,2327.1,2326.6,0.42978]
[1725977631421,0.8039,2327.1,2326.7,0.42976]
[1725977631729,11.3402353,2327.0,2326.6,0.42977]
[1725977631920,11.3402353,2327.0,2326.7,0.42976]
[1725977632226,0.42974,2326.9,2326.0,1.07473]
[1725977632614,11.3402453,2327.0,2326.6,0.42978]
[1725977632819,10.9105253,2327.0,2326.0,1.07473]
[1725977633015,11.9848153,2327.0,2326.4,0.42982]
[1725977633516,11.9848153,2327.0,2326.3,0.42983]
[1725977633719,0.42979,2326.6,2326.3,0.42983]
[1725977633932,0.42978,2326.7,2326.3,0.42983]
[1725977634227,0.42979,2326.6,2326.3,0.42983]
[1725977634424,0.42979,2326.6,2325.9,7.906]
[1725977634425,0.42982,2326.5,2326.2,0.42986]
[1725977634723,4.2984,2326.8,2325.8,0.7552]
[1725977634724,11.00133052,2326.4,2325.8,0.7552]
[1725977634923,0.42985,2326.3,2326.0,0.42988]
[1725977635118,11.00133052,2326.4,2325.8,0.7552]
[1725977635119,11.00133052,2326.5,2326.1,0.42987]
[1725977635323,0.3971,2326.6,2326.2,0.42985]
[1725977635520,11.36171485,2326.6,2326.0,0.42988]
[1725977635720,0.42981,2326.5,2325.8,0.7552]
[1725977635916,11.36171485,2326.6,2325.8,0.7552]
[1725977635917,0.3971,2326.6,2325.8,0.7552]
[1725977636219,11.39443485,2326.5,2326.3,0.42984]
[1725977636526,11.39443485,2326.5,2325.8,1.83004]
[1725977636527,0.42985,2326.3,2326.0,0.42988]
[1725977636727,0.42985,2326.3,2325.8,0.7552]
[1725977636728,10.96461485,2326.5,2325.8,0.7552]
[1725977637020,10.96461485,2326.5,2325.9,1.07479]
[1725977637222,4.144,2327.0,2326.4,0.42981]
[1725977637223,0.42978,2326.7,2326.4,0.42981]
[1725977637533,0.42985,2326.3,2325.8,0.7552]
[1725977637723,0.42985,2326.3,2326.0,0.42988]
[1725977638242,0.42988,2326.1,2325.9,0.4299]
[1725977638830,1.07456,2326.4,2325.8,0.7552]
[1725977638831,0.42986,2326.2,2326.0,0.42988]
[1725977639015,10.52526129,2326.0,2325.0,1.07518]
[1725977639220,19.48728387,2326.1,2325.0,0.21807]
[1725977639418,1.07475,2326.0,2324.9,1.07525]
[1725977639620,7.864,2326.1,2324.8,0.768]
[1725977639621,3.72,2326.1,2324.8,0.768]
[1725977639939,0.43005,2325.2,2325.0,0.43007]
[1725977640230,1.07499,2325.5,2325.1,0.43006]
[1725977640231,0.43004,2325.3,2325.1,0.43006]
[1725977640523,1.07499,2325.5,2324.8,0.768]
[1725977640524,0.43005,2325.2,2324.8,0.768]
[1725977640730,1.07499,2325.5,2325.0,0.43007]
[1725977641030,10.80886572,2325.4,2324.8,0.768]
[1725977641219,10.80886572,2325.4,2324.5,40.8]
[1725977641417,1.07507,2325.3,2324.8,0.43011]
[1725977641719,1.07507,2325.3,2324.7,0.43012]
[1725977641720,0.43011,2324.9,2324.7,0.43012]
[1725977641924,0.4301,2324.9,2324.7,0.43012]
[1725977642325,14.97219434,2324.8,2324.0,1.07565]
[1725977642528,10.67059434,2324.8,2324.2,1.07558]
[1725977642716,10.67059434,2324.8,2324.3,0.4302]
[1725977642717,0.43018,2324.5,2324.3,0.4302]
[1725977642921,3.72,2325.2,2323.8,1.83962]
[1725977642922,1.07535,2324.7,2323.8,1.83962]
[1725977643122,1.07553,2324.3,2323.6,0.403]
[1725977643426,10.63222923,2324.2,2323.6,0.403]
[1725977643832,0.43024,2324.2,2323.8,0.43029]
[1725977644019,0.43024,2324.2,2323.6,0.403]
[1725977644020,0.80638,2324.5,2324.2,0.43023]
[1725977644224,10.90800907,2324.1,2324.0,0.43025]
[1725977644541,0.43025,2324.1,2323.7,0.43031]
[1725977644723,3.31,2324.2,2323.2,0.3706]
[1725977644923,0.43033,2323.7,2323.2,0.80101]
[1725977645122,0.43037,2323.5,2322.7,0.3855]
[1725977645329,0.43038,2323.4,2322.9,0.43046]
[1725977645527,9.87510493,2323.4,2322.7,0.3855]
[1725977645729,0.43034,2323.7,2323.1,0.43043]
[1725977645936,0.43034,2323.7,2322.7,0.3855]
[1725977645937,10.78420907,2323.7,2322.7,0.3855]
[1725977646134,10.69558724,2323.3,2323.2,0.4304]
[1725977646322,0.4302,2324.4,2323.2,6.0]
[1725977646527,10.50844345,2324.3,2323.3,4.17570018]
[1725977646724,0.7602,2324.5,2323.4,0.07910018]
[1725977646925,10.50844345,2324.4,2323.3,44.8966]
[1725977647124,0.7602,2324.5,2323.4,0.07909391]
[1725977647322,0.7602,2324.5,2323.3,44.8966]
[1725977647530,0.43026,2324.1,2323.3,44.8966]
[1725977647841,0.43024,2324.2,2323.3,44.8966]
[1725977648131,10.96545176,2324.0,2323.7,0.43032]
[1725977648430,10.54369236,2324.3,2323.3,4.0966]
[1725977648632,10.54369236,2324.3,2323.4,0.07909614]
[1725977648837,0.377,2325.0,2323.6,1.07583]
[1725977649028,1.17619,2325.0,2324.4,0.43018]
[1725977649335,0.43013,2324.8,2324.2,0.43022]
[1725977649532,1.0753,2324.8,2323.7,40.8]
[1725977649730,11.45174029,2325.0,2323.9,0.43027]
[1725977649731,0.43018,2324.5,2323.9,0.43027]
[1725977649929,0.4302,2324.4,2323.8,0.4303]
[1725977650234,1.82133,2325.0,2323.5,0.3716]
[1725977650235,14.42564029,2324.9,2323.5,0.3716]
[1725977650431,3.72,2324.9,2323.5,0.3716]
[1725977650636,0.43017,2324.6,2323.5,0.3716]
[1725977650935,8.93894,2325.6,2324.6,0.43014]
[1725977651133,0.43013,2324.8,2324.2,0.43021]
[1725977651340,0.43013,2324.8,2323.9,3.72]
[1725977651341,10.84031523,2324.7,2323.9,3.72]
[1725977651635,1.07512,2325.2,2323.9,3.72]
[1725977651834,4.49361259,2325.8,2323.7,0.21210021]
[1725977652047,10.84031523,2324.7,2323.8,1.15484405]
[1725977652227,10.84031523,2324.8,2324.0,1.07566]
[1725977652429,5.21893,2325.7,2324.1,4.6703]
[1725977652430,0.43004,2325.3,2324.1,4.6703]
[1725977652629,1.0998302,2326.7,2323.6,44.86940031]
[1725977652630,10.67467027,2324.7,2323.6,44.86940031]
[1725977652831,11.74998027,2324.8,2323.6,44.52]
[1725977653030,0.82465,2324.7,2324.2,0.43022]
[1725977653229,0.3945,2324.7,2323.6,44.73380028]
[1725977653436,9.8370978,2324.7,2324.0,1.07567]
[1725977653638,10.54165052,2324.9,2323.9,3.72]
[1725977653840,0.43011,2324.9,2323.9,3.72]
[1725977654139,11.01380583,2324.8,2324.5,0.43016]
[1725977654334,11.01380583,2324.8,2323.9,4.0995]
[1725977654535,1.07512,2325.3,2324.3,0.4302]
[1725977654734,0.43013,2324.8,2324.3,0.4302]
[1725977654934,11.01380583,2324.9,2324.0,1.07566]
[1725977655133,0.3945,2325.4,2324.1,1.07563]
[1725977655439,10.84461548,2325.0,2324.2,0.3867]
[1725977655629,0.43005,2325.2,2324.2,0.3867]
[1725977655835,11.27469548,2325.1,2324.6,0.43014]
[1725977656030,10.84461548,2325.1,2324.5,0.43017]
[1725977656232,0.4301,2324.9,2324.5,0.43017]
[1725977656745,0.43009,2325.0,2324.6,0.43015]
[1725977657038,10.84249895,2325.2,2324.3,0.3741]
[1725977657338,0.3945,2325.4,2324.4,0.43018]
[1725977657339,0.43013,2324.8,2324.4,0.43018]
[1725977657637,10.56863374,2325.1,2324.2,0.3867]
[1725977657940,1.46957,2325.4,2324.2,0.3867]
[1725977657941,10.56863374,2325.3,2324.2,0.3867]
[1725977658244,0.43015,2324.7,2324.3,0.4302]
[1725977658440,1.07526,2325.0,2324.0,0.3741]
[1725977658741,1.07512,2325.2,2324.2,0.43022]
[1725977658742,11.08591671,2324.6,2324.2,0.43022]
[1725977658930,0.4302,2324.4,2324.0,0.80435]
[1725977659130,1.0753,2324.8,2324.0,0.3741]
[1725977659131,10.80065461,2324.5,2324.0,0.3741]
[1725977659336,10.83552349,2324.3,2323.7,0.4037]
[1725977659636,1.44749,2324.7,2324.0,0.43026]
[1725977659637,12.10324671,2324.7,2324.0,0.43026]
[1725977659829,0.4302,2324.4,2324.0,0.43025]
[1725977660028,10.80065461,2324.4,2324.1,0.43024]
[1725977660235,0.43018,2324.5,2323.7,0.4037]
[1725977660537,11.05650923,2324.4,2324.1,0.43024]
[1725977660749,10.62631923,2324.4,2323.4,4.1234]
[1725977661044,10.62631923,2324.4,2323.7,0.43032]
[1725977661045,0.43027,2324.0,2323.7,0.43032]
[1725977661245,1.07552,2324.4,2323.4,0.4034]
[1725977661246,0.43026,2324.1,2323.4,0.4034]
[1725977661542,10.69246845,2324.0,2323.4,0.4034]
[1725977661733,0.43033,2323.7,2323.2,0.3661]
[1725977661935,1.07549,2324.4,2323.2,4.6701]
[1725977662229,11.00114533,2324.1,2323.8,0.43029]
[1725977662430,10.57089533,2324.1,2323.2,0.3661]
[1725977662644,10.57089533,2324.1,2322.9,4.1186]
[1725977662645,0.43037,2323.5,2322.9,0.3986]
[1725977662943,0.43035,2323.6,2322.9,0.3986]
[1725977663140,12.43000533,2324.0,2322.9,0.3986]
[1725977663331,0.43037,2323.5,2323.1,0.43042]
[1725977663644,12.06905679,2323.9,2322.9,0.3986]
[1725977663940,0.7834,2324.0,2322.9,0.3986]
[1725977664128,0.43038,2323.4,2323.0,0.43044]
[1725977664333,1.07582,2323.7,2322.6,0.3661]
[1725977664533,0.4304,2323.3,2322.9,0.43046]
[1725977664736,10.91874475,2323.3,2322.6,0.3661]
[1725977665043,0.43043,2323.2,2322.8,0.43049]
[1725977665252,1.07592,2323.5,2322.6,0.3661]
[1725977665253,4.79582,2323.7,2322.6,0.3661]
[1725977665535,0.3674,2323.9,2322.6,0.3661]
[1725977665536,10.77926793,2323.2,2322.6,0.3661]
[1725977665745,1.0759,2323.5,2322.6,0.79661]
[1725977665934,11.20971793,2323.1,2322.6,0.43052]
[1725977666131,10.77926793,2323.1,2322.5,0.3986]
[1725977666331,11.85521793,2323.4,2322.6,0.43052]
[1725977666332,0.3732,2323.3,2322.6,0.43052]
[1725977666536,0.764,2323.3,2322.6,0.43052]
[1725977666732,11.74277314,2323.3,2322.5,0.3986]
[1725977666932,11.74277314,2323.3,2322.9,0.43047]
[1725977667134,1.07558,2324.2,2323.4,0.43038]
[1725977667333,0.764,2324.1,2323.5,0.43035]
[1725977667535,0.764,2324.1,2322.8,0.43049]
[1725977667536,10.95162395,2323.7,2322.8,0.43049]
[1725977667842,0.43034,2323.6,2322.6,0.3697]
[1725977668138,10.95162395,2323.6,2323.0,3.31]
[1725977668336,10.95162395,2323.7,2323.0,3.31]
[1725977668544,0.764,2324.1,2323.0,3.31]
[1725977668733,10.80741192,2324.0,2323.1,1.07609]
[1725977668933,0.43019,2324.5,2324.0,0.43025]
[1725977669139,0.43014,2324.7,2324.0,0.43025]
[1725977669334,10.97273313,2324.4,2324.3,0.43021]
[1725977669636,0.7719,2324.9,2324.5,0.43017]
[1725977669637,10.97273313,2324.6,2324.5,0.43017]
[1725977669940,0.3811,2324.9,2324.5,4.3016]
[1725977670131,0.3811,2324.9,2324.0,41.1737]
[1725977670444,0.81121,2324.9,2324.4,0.43018]
[1725977670640,0.3811,2324.9,2324.6,0.43015]
[1725977671047,0.3811,2324.9,2324.5,0.43016]
[1725977671239,3.6911,2324.9,2324.0,41.1737]
[1725977671437,10.94741296,2324.8,2323.8,3.31]
[1725977671839,0.43017,2324.5,2324.0,0.43026]
[1725977672043,0.43016,2324.6,2324.1,0.43025]
[1725977672347,11.37761296,2324.4,2323.6,0.376]
[1725977672543,14.3059605,2324.6,2323.6,0.376]
[1725977672843,10.9959605,2324.3,2323.5,0.80005]
[1725977673046,0.43027,2324.0,2323.5,0.80006]
[1725977673249,0.43029,2323.9,2323.5,0.3697]
[1725977673443,10.74062784,2323.9,2323.7,0.43031]
[1725977673644,0.3932,2324.2,2323.3,40.8]
[1725977673845,0.43028,2324.0,2323.2,3.31]
[1725977674049,0.43029,2323.9,2323.4,0.43037]
[1725977674348,1.07577,2323.8,2322.9,0.3764]
[1725977674554,0.3718,2323.8,2322.7,1.07627]
[1725977674847,0.80211,2323.8,2323.3,0.43039]
[1725977675241,0.3718,2323.8,2322.7,1.07627]
[1725977675551,0.80211,2323.8,2323.3,0.43039]
[1725977675760,0.80211,2323.8,2322.6,3.31]
[1725977675761,0.3718,2323.8,2322.6,3.31]
[1725977675950,0.3718,2323.8,2322.6,4.38631]
[1725977676245,3.31,2323.7,2322.4,1.1659]
[1725977676453,11.04431909,2323.7,2322.6,3.31]
[1725977676649,11.04430909,2323.7,2323.2,0.4304]
[1725977676952,10.61398909,2323.7,2322.6,3.31]
[1725977677146,0.3718,2323.8,2322.9,3.31]
[1725977677344,0.3718,2323.8,2322.7,1.07627]
[1725977677644,0.3718,2323.8,2323.2,0.4304]
[1725977677645,0.43032,2323.7,2323.2,0.4304]
[1725977678050,10.57059072,2323.6,2322.4,0.7702]
[1725977678252,0.43042,2323.2,2322.7,0.4305]
[1725977678557,11.16696785,2323.1,2322.6,0.43052]
[1725977678853,10.73653785,2323.4,2322.8,0.43049]
[1725977679058,0.43043,2323.2,2322.7,0.4305]
[1725977679242,0.43043,2323.2,2322.8,0.43049]
[1725977679441,0.43043,2323.2,2322.4,0.7702]
[1725977679442,11.35701318,2323.1,2322.4,0.7702]
[1725977679648,10.92658318,2323.1,2322.1,0.21625753]
[1725977679847,10.92658318,2323.4,2322.3,3.31]
[1725977680053,10.92658318,2323.4,2322.2,1.46381]
[1725977680054,0.3818,2323.5,2322.6,3.31]
[1725977680361,0.3818,2323.5,2322.8,1.07623]
[1725977680546,0.3818,2323.5,2323.4,0.43038]
[1725977680746,0.3818,2323.5,2322.8,1.07623]
[1725977680747,0.3718,2323.8,2323.6,0.43034]
[1725977681060,0.3718,2323.8,2323.5,0.43036]
[1725977681553,0.3718,2323.8,2322.9,3.6973]
[1725977681554,0.3678,2324.0,2322.9,4.0997]
[1725977681747,0.3678,2324.0,2323.2,1.07604]
[1725977681947,10.86031878,2323.8,2323.6,0.43033]
[1725977682149,0.4049,2324.3,2323.5,3.31]
[1725977682354,1.0998302,2325.0,2324.4,0.43018]
[1725977682554,0.43015,2324.7,2324.3,0.43021]
[1725977682759,10.73695985,2324.6,2323.7,4.075]
[1725977682953,0.43013,2324.8,2324.3,0.4302]
[1725977683154,11.10475985,2324.9,2324.2,0.43022]
[1725977683155,0.43014,2324.7,2324.2,0.43022]
[1725977683353,0.43014,2324.7,2324.1,0.43024]
[1725977683354,11.03931088,2324.6,2324.1,0.43024]
[1725977683559,0.43016,2324.6,2324.1,0.43024]
[1725977683857,3.6778,2324.9,2323.7,0.765]
[1725977684060,0.43017,2324.6,2324.1,0.43024]
[1725977684251,0.43017,2324.6,2323.7,0.765]
[1725977684451,10.60915088,2324.8,2324.4,0.43017]
[1725977684659,0.3678,2324.9,2323.9,1.74818758]
[1725977684955,0.3678,2324.9,2324.3,0.4302]
[1725977685147,0.43013,2324.8,2324.3,0.4302]
[1725977685355,0.79791,2324.9,2324.4,0.43019]
[1725977685550,0.43012,2324.8,2323.8,1.07576]
[1725977685750,0.79792,2324.9,2323.9,1.74832658]
[1725977685962,0.79792,2324.9,2324.4,0.43019]
[1725977686258,0.43013,2324.8,2323.8,1.07576]
[1725977686559,0.3678,2324.9,2323.7,4.485]
[1725977686560,0.43016,2324.6,2324.2,0.43022]
[1725977686764,0.3678,2324.9,2324.3,0.4302]
[1725977686765,11.24758037,2324.7,2324.3,0.4302]
[1725977686954,0.43014,2324.7,2324.3,0.4302]
[1725977687150,0.3678,2324.9,2324.4,0.43018]
[1725977687357,0.43013,2324.8,2324.4,0.43018]
[1725977687556,10.99131862,2324.8,2324.5,0.43017]
[1725977687951,10.99131862,2324.8,2323.9,1.07572]
[1725977688261,0.3678,2324.9,2324.6,0.43015]
[1725977688463,0.43013,2324.8,2324.4,0.43018]
[1725977688652,0.3678,2324.9,2323.9,2.15157964]
[1725977688853,0.4049,2325.0,2324.0,1.74825936]
[1725977689055,0.83499,2325.0,2324.7,0.43013]
[1725977689379,0.83499,2325.0,2324.6,0.43015]
[1725977689380,0.4301,2324.9,2324.6,0.43015]
[1725977689561,0.83499,2325.0,2324.6,0.43015]
[1725977690065,0.83499,2325.0,2324.7,0.43014]
[1725977690262,0.4049,2325.0,2324.7,0.43014]
[1725977690470,0.83499,2325.0,2324.6,0.43015]
[1725977690657,0.83499,2325.0,2324.1,41.47242363]
[1725977690658,0.4049,2325.0,2324.1,41.47242363]
[1725977690860,0.4049,2325.0,2324.4,0.43019]
[1725977691061,0.43013,2324.8,2324.1,0.67242363]
[1725977691260,0.43013,2324.8,2324.5,0.43017]
[1725977691669,0.4049,2325.0,2324.1,0.67242363]
[1725977691670,1.48015,2325.0,2324.1,0.67242363]
[1725977691970,0.43013,2324.8,2324.1,0.67242363]
[1725977692269,0.43011,2324.9,2324.6,0.43015]
[1725977692465,0.43011,2324.9,2324.2,1.07558]
[1725977692769,0.4049,2325.0,2324.3,1.07553]
[1725977692967,0.83117,2325.1,2324.4,1.07549]
[1725977693167,0.4301,2324.9,2324.4,0.3926]
[1725977693365,10.6424044,2325.0,2324.5,0.43017]
[1725977693665,0.43013,2324.8,2324.5,0.43017]
[1725977693863,0.43014,2324.7,2324.5,0.43017]
[1725977694168,0.43013,2324.8,2324.5,0.43016]
[1725977694370,0.43013,2324.8,2324.6,0.43015]
[1725977694556,0.43013,2324.8,2324.1,1.74802363]
[1725977694756,0.43011,2324.9,2324.6,0.43014]
[1725977695266,0.43012,2324.8,2324.6,0.43014]
[1725977695561,11.0724944,2325.0,2324.3,1.07553]
[1725977695874,10.6424044,2325.0,2324.7,0.43012]
[1725977696164,11.0724944,2325.0,2324.8,0.43011]
[1725977696364,11.0724944,2325.0,2324.9,0.4301]
[1725977696365,10.6424044,2325.0,2324.9,0.4301]
[1725977696565,2.5486202,2325.5,2325.3,0.43002]
[1725977696566,0.80379,2325.5,2325.3,0.43002]
[1725977696769,1.6497453,2325.8,2324.9,1.07524]
[1725977696770,0.42998,2325.6,2324.9,1.07524]
[1725977696970,10.64029055,2325.4,2325.0,0.3737]
[1725977697267,10.64029055,2325.6,2325.5,0.42999]
[1725977697467,0.3823,2326.2,2325.4,1.075]
[1725977697660,0.3823,2326.2,2325.3,1.07507]
[1725977697661,10.78380685,2326.1,2325.3,1.07507]
[1725977697971,0.81217,2326.2,2325.9,0.42991]
[1725977698472,10.59749171,2326.1,2325.6,0.42996]
[1725977698659,10.59749171,2326.1,2325.3,40.8]
[1725977698660,10.59749171,2326.1,2325.3,41.87504]
[1725977698865,10.59749171,2326.1,2325.8,0.42992]
[1725977699060,10.59749171,2326.1,2325.9,0.42991]
[1725977699261,10.59749171,2326.1,2325.8,0.42992]
[1725977699463,10.59749171,2326.1,2325.3,40.8]
[1725977700063,10.59749171,2326.1,2325.8,0.42992]
[1725977700267,10.59749171,2326.1,2326.0,0.4299]
[1725977700459,10.59749171,2326.1,2325.3,40.8]
[1725977700460,11.02738171,2326.1,2325.3,40.8]
[1725977700666,0.4299,2326.0,2325.7,0.42995]
[1725977700967,0.4299,2326.0,2325.2,0.7769]
[1725977700968,10.61117316,2325.9,2325.4,0.43]
[1725977701175,10.61117316,2325.9,2325.2,0.3908]
[1725977701472,10.61117316,2325.9,2325.5,0.42998]
[1725977701659,10.61117316,2325.9,2325.2,0.3908]
[1725977702065,1.07489,2325.7,2324.8,0.43011]
[1725977702375,10.89288874,2325.6,2324.5,0.3924]
[1725977702560,10.89288874,2325.6,2324.4,0.3988]
[1725977702561,4.79498,2325.5,2324.4,0.3988]
[1725977702765,0.43014,2324.7,2324.4,0.3988]
[1725977702962,10.50518874,2325.4,2324.0,0.3924]
[1725977703275,3.72,2325.2,2324.1,0.3988]
[1725977703662,11.60501894,2325.4,2324.1,0.3988]
[1725977703663,10.93236389,2325.1,2324.1,0.3988]
[1725977703865,10.93236389,2325.1,2324.1,4.1188]
[1725977704076,0.43006,2325.1,2324.6,0.43015]
[1725977704377,10.93236389,2325.4,2324.6,3.3]
[1725977704676,0.81767,2325.6,2325.1,0.43005]
[1725977705171,10.94722875,2325.5,2325.1,0.43006]
[1725977705470,10.94722875,2325.5,2324.9,0.21175903]
[1725977705791,10.94722875,2325.5,2325.1,0.43005]
[1725977706071,0.43001,2325.4,2324.9,0.43009]
[1725977706262,0.43004,2325.3,2324.8,0.43011]
[1725977706775,0.43003,2325.3,2324.8,0.4301]
[1725977706961,0.43008,2325.0,2324.5,0.43016]
[1725977707165,0.43011,2324.9,2324.2,0.4026]
[1725977707460,10.65213359,2325.3,2324.3,40.8]
[1725977707664,0.4027,2325.4,2324.5,0.43016]
[1725977707665,0.43009,2325.0,2324.5,0.43016]
[1725977708065,0.43006,2325.2,2324.7,0.43013]
[1725977708277,10.59507087,2325.3,2324.2,41.2026]
[1725977708465,10.67039614,2324.9,2324.0,0.3726]
[1725977708778,0.43013,2324.8,2324.0,0.3726]
[1725977708972,10.67039614,2324.8,2324.0,0.3726]
[1725977709276,10.67039614,2324.8,2323.5,5.22955704]
[1725977709277,0.43022,2324.3,2323.9,0.43028]
[1725977709476,0.4302,2324.4,2323.5,1.29435704]
[1725977709662,10.86024236,2324.2,2323.9,0.43028]
[1725977709865,10.86024236,2324.2,2323.6,0.21651019]
[1725977710065,11.09987148,2324.6,2324.1,0.43023]
[1725977710272,0.43018,2324.5,2324.1,0.43024]
[1725977710477,0.7565,2324.7,2323.6,0.21651019]
[1725977710478,10.67287316,2324.4,2324.0,0.43026]
[1725977710664,10.67287316,2324.5,2324.1,0.43024]
[1725977710869,0.43018,2324.5,2324.1,0.43024]
[1725977711278,10.67287316,2324.4,2323.6,1.07586]
[1725977711469,0.81475,2324.7,2324.2,0.43022]
[1725977711665,10.94069424,2324.6,2324.5,0.43017]
[1725977711867,0.37,2325.2,2324.8,0.43011]
[1725977712080,10.94069424,2325.0,2324.8,0.43011]
[1725977712467,0.80005,2325.2,2324.8,0.43011]
[1725977712670,0.37,2325.2,2324.8,0.4301]
[1725977712975,1.0998302,2326.2,2324.9,4.3008]
[1725977713169,0.4299,2326.0,2325.6,0.42997]
[1725977713372,10.96458552,2325.8,2325.1,1.07516]
[1725977713671,11.36928552,2326.1,2325.5,0.42999]
[1725977713672,0.42991,2326.0,2325.5,0.42999]
[1725977713877,0.42995,2325.8,2325.0,0.3909]
[1725977714069,10.74584491,2326.0,2325.0,0.3909]
[1725977714269,10.74584491,2326.0,2325.1,1.07516]
[1725977714465,0.4047,2326.1,2325.8,0.42992]
[1725977714673,0.4047,2326.1,2325.2,4.79512]
[1725977714866,1.07448,2326.6,2325.2,4.79512]
[1725977715069,0.4047,2326.6,2325.3,1.07507]
[1725977715379,10.81059812,2326.2,2326.1,0.42988]
[1725977715577,0.4047,2327.0,2326.3,0.42983]
[1725977715772,0.42976,2326.8,2326.3,0.42983]
[1725977715967,0.42976,2326.8,2325.9,0.7593]
[1725977716173,10.76430176,2326.9,2325.9,0.7593]
[1725977716474,10.76430176,2326.9,2326.4,0.42982]
[1725977716475,11.19404176,2326.9,2326.4,0.42982]
[1725977716870,10.76430176,2326.9,2325.9,0.97902794]
[1725977717071,0.42976,2326.8,2326.3,0.42984]
[1725977717278,10.76430176,2326.9,2325.9,0.7593]
[1725977717476,10.65652744,2326.7,2325.5,3.72]
[1725977717676,1.07443,2326.7,2325.6,0.3761]
[1725977717979,10.65652744,2326.6,2325.6,0.3761]
[1725977718282,1.07456,2326.4,2325.4,41.182]
[1725977718472,0.3728,2326.3,2325.0,0.3761]
[1725977718672,0.42998,2325.6,2325.2,0.43004]
[1725977718879,3.72,2326.1,2324.9,0.43009]
[1725977718880,0.43002,2325.4,2324.9,0.43009]
[1725977719075,0.43003,2325.3,2324.7,0.4052]
[1725977719279,0.43003,2325.3,2324.4,0.3761]
[1725977719280,10.7949945,2325.3,2324.4,0.3761]
[1725977719480,0.3975,2325.2,2324.0,44.9252]
[1725977719687,0.43009,2325.0,2324.0,44.9252]
[1725977719877,0.43009,2325.0,2324.6,0.43015]
[1725977720082,10.55889937,2325.1,2324.0,46.00086]
[1725977720381,0.3975,2325.2,2324.7,0.43012]
[1725977720677,4.144,2325.6,2324.3,7.906]
[1725977720869,4.144,2325.6,2324.9,0.43009]
[1725977721073,14.83296005,2325.6,2324.3,7.906]
[1725977721279,0.43004,2325.3,2324.8,0.43011]
[1725977721475,0.43002,2325.4,2324.3,7.906]
[1725977721677,0.43003,2325.3,2324.8,0.43011]
[1725977721983,10.74797291,2325.5,2324.8,0.43011]
[1725977722285,0.3975,2325.8,2324.7,3.92973096]
[1725977722585,0.3975,2325.8,2325.0,0.43007]
[1725977722586,0.42998,2325.6,2325.0,0.43007]
[1725977722879,0.3975,2325.8,2324.8,1.28917086]
[1725977723081,4.144,2326.1,2325.0,4.7952]
[1725977723284,0.404,2326.3,2325.0,5.00688765]
[1725977723473,0.404,2326.3,2325.8,0.42993]
[1725977723474,0.83385,2326.3,2325.8,0.42993]
[1725977723678,11.19502595,2326.3,2325.6,0.42996]
[1725977723885,0.404,2326.3,2325.2,4.186]
[1725977724186,10.79102595,2326.2,2325.2,4.186]
[1725977724483,10.79102595,2326.2,2325.3,0.405]
[1725977724871,0.4299,2326.0,2325.5,0.42999]
[1725977725182,10.79102595,2326.2,2324.9,4.186]
[1725977725183,14.89521605,2325.9,2324.9,4.186]
[1725977725390,0.42999,2325.5,2325.1,0.43005]
[1725977725680,0.42999,2325.5,2324.7,4.186]
[1725977725681,0.43007,2325.1,2324.7,4.186]
[1725977725983,0.4301,2324.9,2324.7,4.186]
[1725977726281,12.39273068,2325.4,2324.3,6.928]
[1725977726282,0.43004,2325.3,2324.3,3.72]
[1725977726478,4.5304,2325.4,2325.0,0.43007]
[1725977726680,4.5304,2325.4,2324.5,4.186]
[1725977726681,0.3864,2325.4,2324.5,4.186]
[1725977726883,0.3864,2325.4,2325.0,0.43006]
[1725977727073,10.6321,2325.3,2324.5,4.186]
[1725977727274,0.43009,2325.0,2324.5,0.43016]
[1725977727491,0.43006,2325.2,2324.7,0.43013]